[Event "*** Titled Tuesday 3|2 Blitz"]
[Site "Chess.com"]
[Date "2015.09.01"]
[Round "1"]
[White "Ar4uha"]
[Black "Haridaskesavan"]
[Result "1-0"]
[WhiteElo "2385"]
[BlackElo "2007"]
[TimeControl "180+2"]
[EndTime "11:03:12 PDT"]
[Termination "Ar4uha won by resignation"]

1. e4 {[%clk 0:02:47.2]} 1... e5 {[%clk 0:03:00.5]} 2. Nf3 {[%clk 0:02:48.5]}
2... Nc6 {[%clk 0:03:01.5]} 3. d4 {[%clk 0:02:50.2]} 3... exd4 {[%clk
0:03:02.1]} 4. Nxd4 {[%clk 0:02:52.1]} 4... Nge7 {[%clk 0:03:02.5]} 5. Nc3
{[%clk 0:02:51.6]} 5... Nxd4 {[%clk 0:03:02.7]} 6. Qxd4 {[%clk 0:02:53.5]} 6...
Nc6 {[%clk 0:03:03.8]} 7. Qe3 {[%clk 0:02:53.9]} 7... g6 {[%clk 0:03:00.2]} 8.
Bc4 {[%clk 0:02:53.3]} 8... Bg7 {[%clk 0:03:00.9]} 9. Bd2 {[%clk 0:02:53.3]}
9... O-O {[%clk 0:03:01.4]} 10. O-O-O {[%clk 0:02:54.4]} 10... d6 {[%clk
0:03:02.2]} 11. h4 {[%clk 0:02:54.4]} 11... h5 {[%clk 0:03:00.3]} 12. f3 {[%clk
0:02:54.4]} 12... Ne5 {[%clk 0:02:57]} 13. Be2 {[%clk 0:02:55.4]} 13... a6
{[%clk 0:02:45.5]} 14. g4 {[%clk 0:02:56.6]} 14... hxg4 {[%clk 0:02:35.5]} 15.
f4 {[%clk 0:02:58]} 15... Nf3 {[%clk 0:02:31.8]} 16. Bxf3 {[%clk 0:02:58.5]}
16... gxf3 {[%clk 0:02:32.7]} 17. Qxf3 {[%clk 0:03:00.4]} 17... Qd7 {[%clk
0:02:08.6]} 18. Rdg1 {[%clk 0:02:58.4]} 18... b5 {[%clk 0:02:07.2]} 19. h5
{[%clk 0:02:58.9]} 19... b4 {[%clk 0:02:06]} 20. Nd5 {[%clk 0:03:00.2]} 20... c6
{[%clk 0:02:01.2]} 21. Nb6 {[%clk 0:03:00.7]} 21... Qb7 {[%clk 0:01:58.9]} 22.
Nxa8 {[%clk 0:03:01.9]} 22... Be6 {[%clk 0:01:58.4]} 23. hxg6 {[%clk 0:03:01.7]}
23... fxg6 {[%clk 0:01:59]} 24. Rxg6 {[%clk 0:03:01.6]} 24... Bf7 {[%clk
0:01:55.7]} 25. Rg5 {[%clk 0:03:02.5]} 1-0

[Event "*** Titled Tuesday 3|2 Blitz"]
[Site "Chess.com"]
[Date "2015.09.01"]
[Round "1"]
[White "VSERGUEI"]
[Black "AlexCn1"]
[Result "1-0"]
[WhiteElo "2536"]
[BlackElo "2196"]
[TimeControl "180+2"]
[EndTime "11:03:56 PDT"]
[Termination "VSERGUEI won by resignation"]

1. d4 {[%clk 0:02:59.2]} 1... Nf6 {[%clk 0:02:59.1]} 2. c4 {[%clk 0:02:59]} 2...
g6 {[%clk 0:02:59.2]} 3. Nc3 {[%clk 0:02:59.7]} 3... d5 {[%clk 0:03:00.4]} 4.
Nf3 {[%clk 0:02:59.8]} 4... Bg7 {[%clk 0:03:01.1]} 5. Qb3 {[%clk 0:03:00.6]}
5... dxc4 {[%clk 0:03:02.2]} 6. Qxc4 {[%clk 0:03:01.3]} 6... O-O {[%clk
0:03:03.8]} 7. e4 {[%clk 0:03:00.8]} 7... Nc6 {[%clk 0:03:04.2]} 8. Be3 {[%clk
0:03:00.2]} 8... e5 {[%clk 0:03:00.2]} 9. Nxe5 {[%clk 0:02:57.8]} 9... Nxe5
{[%clk 0:02:57.2]} 10. dxe5 {[%clk 0:02:58.4]} 10... Ng4 {[%clk 0:02:58.3]} 11.
Rd1 {[%clk 0:02:59.2]} 11... Nxe3 {[%clk 0:02:46.5]} 12. Rxd8 {[%clk 0:02:59.1]}
12... Nxc4 {[%clk 0:02:46.1]} 13. Rxf8+ {[%clk 0:02:59.9]} 13... Kxf8 {[%clk
0:02:47.5]} 14. Bxc4 {[%clk 0:03:00.3]} 14... Bxe5 {[%clk 0:02:48.5]} 15. Ke2
{[%clk 0:03:00.3]} 15... c6 {[%clk 0:02:49.7]} 16. g3 {[%clk 0:03:00.1]} 16...
b5 {[%clk 0:02:49.9]} 17. Bb3 {[%clk 0:02:58.4]} 17... Bb7 {[%clk 0:02:49.5]}
18. f4 {[%clk 0:02:57.8]} 18... Bc7 {[%clk 0:02:50.1]} 19. Rd1 {[%clk
0:02:56.8]} 19... Rd8 {[%clk 0:02:51.1]} 20. Rxd8+ {[%clk 0:02:56.3]} 20... Bxd8
{[%clk 0:02:52.3]} 21. e5 {[%clk 0:02:56.5]} 21... a5 {[%clk 0:02:48.4]} 22. Ne4
{[%clk 0:02:56.3]} 22... Bb6 {[%clk 0:02:39.5]} 23. Bxf7 {[%clk 0:02:52.8]}
23... c5 {[%clk 0:02:32.5]} 24. Nd6 {[%clk 0:02:52.5]} 24... Bc6 {[%clk
0:02:32.5]} 25. g4 {[%clk 0:02:47.3]} 25... Bc7 {[%clk 0:02:31.7]} 26. Bb3
{[%clk 0:02:41]} 26... Bxd6 {[%clk 0:02:29.3]} 27. exd6 {[%clk 0:02:40.9]} 27...
Ke8 {[%clk 0:02:30.8]} 28. Be6 {[%clk 0:02:40.3]} 28... Bd7 {[%clk 0:02:30.7]}
29. f5 {[%clk 0:02:40.9]} 29... gxf5 {[%clk 0:02:19.4]} 30. gxf5 {[%clk
0:02:38.4]} 30... b4 {[%clk 0:02:16.7]} 31. b3 {[%clk 0:02:35.2]} 31... a4
{[%clk 0:02:14]} 32. Ke3 {[%clk 0:02:35.3]} 32... c4 {[%clk 0:02:13.9]} 33. Bxc4
{[%clk 0:02:32.4]} 33... Bxf5 {[%clk 0:02:14.5]} 34. Bb5+ {[%clk 0:02:31.3]} 1-0

[Event "*** Titled Tuesday 3|2 Blitz"]
[Site "Chess.com"]
[Date "2015.09.01"]
[Round "1"]
[White "Imre91"]
[Black "WarlordX"]
[Result "1-0"]
[WhiteElo "2606"]
[BlackElo "2205"]
[TimeControl "180+2"]
[EndTime "11:04:13 PDT"]
[Termination "Imre91 won by resignation"]

1. c4 {[%clk 0:03:00.4]} 1... Nf6 {[%clk 0:03:00.6]} 2. g3 {[%clk 0:02:59.1]}
2... e6 {[%clk 0:03:02.5]} 3. Bg2 {[%clk 0:03:00.7]} 3... Be7 {[%clk 0:03:03.6]}
4. Nf3 {[%clk 0:03:02.6]} 4... O-O {[%clk 0:03:05.3]} 5. O-O {[%clk 0:03:04.5]}
5... d5 {[%clk 0:03:06.9]} 6. d4 {[%clk 0:03:05.1]} 6... c6 {[%clk 0:03:04.2]}
7. Qc2 {[%clk 0:03:06.1]} 7... Nbd7 {[%clk 0:03:05.3]} 8. Nbd2 {[%clk
0:03:07.3]} 8... Re8 {[%clk 0:03:06.6]} 9. e4 {[%clk 0:03:08.3]} 9... dxe4
{[%clk 0:03:07.2]} 10. Nxe4 {[%clk 0:03:10.2]} 10... Nxe4 {[%clk 0:03:09.1]} 11.
Qxe4 {[%clk 0:03:11.2]} 11... Nf6 {[%clk 0:03:11]} 12. Qe2 {[%clk 0:03:12]}
12... c5 {[%clk 0:03:10]} 13. Rd1 {[%clk 0:03:12.5]} 13... Qb6 {[%clk
0:03:07.5]} 14. Be3 {[%clk 0:03:04.4]} 14... Ng4 {[%clk 0:03:01.4]} 15. dxc5
{[%clk 0:03:04.9]} 15... Bxc5 {[%clk 0:03:02]} 16. Bxc5 {[%clk 0:03:06.4]} 16...
Qxc5 {[%clk 0:03:03.6]} 17. Rd2 {[%clk 0:03:05.8]} 17... Rb8 {[%clk 0:02:58.8]}
18. Rad1 {[%clk 0:03:05.3]} 18... b6 {[%clk 0:03:00.2]} 19. a3 {[%clk
0:02:55.5]} 19... Ba6 {[%clk 0:03:00.7]} 20. Rd4 {[%clk 0:02:52.4]} 20... Nf6
{[%clk 0:02:50.3]} 21. Ne5 {[%clk 0:02:46.8]} 21... Rbc8 {[%clk 0:02:42.5]} 22.
b4 {[%clk 0:02:42.6]} 22... Qc7 {[%clk 0:02:40]} 23. b5 {[%clk 0:02:35.3]} 23...
Bb7 {[%clk 0:02:40.7]} 24. Bxb7 {[%clk 0:02:33]} 24... Qxb7 {[%clk 0:02:42.6]}
25. Nc6 {[%clk 0:02:34.6]} 25... h6 {[%clk 0:02:37.4]} 26. a4 {[%clk 0:02:35.2]}
26... a6 {[%clk 0:02:36.5]} 27. Qe5 {[%clk 0:02:33.7]} 27... axb5 {[%clk
0:02:36.7]} 28. axb5 {[%clk 0:02:33.6]} 28... Ra8 {[%clk 0:02:37.3]} 29. h4
{[%clk 0:02:29.9]} 29... Rec8 {[%clk 0:02:29.3]} 30. g4 {[%clk 0:02:21.7]} 30...
Qc7 {[%clk 0:02:30.6]} 31. Rd8+ {[%clk 0:02:12.1]} 31... Kh7 {[%clk 0:02:29.7]}
32. Qxc7 {[%clk 0:02:12]} 32... Rxc7 {[%clk 0:02:28.9]} 33. Rxa8 {[%clk
0:02:13]} 33... Nxg4 {[%clk 0:02:30.3]} 34. Rdd8 {[%clk 0:02:12.3]} 34... h5
{[%clk 0:02:26.2]} 35. Ra7 {[%clk 0:02:11]} 35... Rxa7 {[%clk 0:02:25.9]} 36.
Nxa7 {[%clk 0:02:12.9]} 1-0

[Event "*** Titled Tuesday 3|2 Blitz"]
[Site "Chess.com"]
[Date "2015.09.01"]
[Round "1"]
[White "arnacman"]
[Black "Yaacovn"]
[Result "0-1"]
[WhiteElo "2227"]
[BlackElo "2616"]
[TimeControl "180+2"]
[EndTime "11:04:46 PDT"]
[Termination "Yaacovn won by resignation"]

1. e4 {[%clk 0:02:54.3]} 1... c6 {[%clk 0:03:00.7]} 2. d4 {[%clk 0:02:54.8]}
2... d5 {[%clk 0:03:02.6]} 3. Nd2 {[%clk 0:02:55.8]} 3... dxe4 {[%clk
0:03:03.7]} 4. Nxe4 {[%clk 0:02:56.6]} 4... Nf6 {[%clk 0:03:05.6]} 5. Nxf6+
{[%clk 0:02:57.4]} 5... gxf6 {[%clk 0:03:07.5]} 6. Nf3 {[%clk 0:02:54.7]} 6...
Bg4 {[%clk 0:03:08.1]} 7. Be2 {[%clk 0:02:54.7]} 7... e6 {[%clk 0:03:09.2]} 8.
O-O {[%clk 0:02:52.1]} 8... Qc7 {[%clk 0:03:10.4]} 9. Nh4 {[%clk 0:02:49.5]}
9... h5 {[%clk 0:03:08]} 10. h3 {[%clk 0:02:48.1]} 10... Bxe2 {[%clk 0:03:09.1]}
11. Qxe2 {[%clk 0:02:48.7]} 11... Nd7 {[%clk 0:03:11]} 12. c4 {[%clk 0:02:37.7]}
12... O-O-O {[%clk 0:03:12.1]} 13. Be3 {[%clk 0:02:28.7]} 13... f5 {[%clk
0:03:05.6]} 14. Rab1 {[%clk 0:02:19.2]} 14... Nf6 {[%clk 0:03:04.2]} 15. Nf3
{[%clk 0:02:14.7]} 15... Rg8 {[%clk 0:03:01.3]} 16. Ne5 {[%clk 0:02:09.2]} 16...
Bd6 {[%clk 0:03:00.7]} 17. Bf4 {[%clk 0:02:03.9]} 17... Ne4 {[%clk 0:02:58.3]}
18. c5 {[%clk 0:01:55.3]} 18... Bxe5 {[%clk 0:02:56.1]} 19. Bxe5 {[%clk
0:01:55.5]} 19... Qd7 {[%clk 0:02:56.6]} 20. Rfd1 {[%clk 0:01:39]} 20... f6
{[%clk 0:02:56.1]} 21. Bh2 {[%clk 0:01:36.4]} 21... Qd5 {[%clk 0:02:56.7]} 22.
f3 {[%clk 0:01:34.1]} 22... Ng3 {[%clk 0:02:56.3]} 23. Qe1 {[%clk 0:01:23.2]}
23... h4 {[%clk 0:02:53]} 24. Rd3 {[%clk 0:01:16]} 24... f4 {[%clk 0:02:51.2]}
25. b4 {[%clk 0:01:09]} 25... e5 {[%clk 0:02:50.9]} 26. b5 {[%clk 0:01:03.2]}
26... cxb5 {[%clk 0:02:49]} 27. Rxb5 {[%clk 0:01:01.5]} 27... Qc4 {[%clk
0:02:49.2]} 28. Rdb3 {[%clk 0:00:52.6]} 28... Qxd4+ {[%clk 0:02:49.9]} 0-1

[Event "*** Titled Tuesday 3|2 Blitz"]
[Site "Chess.com"]
[Date "2015.09.01"]
[Round "1"]
[White "HZMC92"]
[Black "Hafez_Bakr"]
[Result "1-0"]
[WhiteElo "2290"]
[BlackElo "1724"]
[TimeControl "180+2"]
[EndTime "11:05:29 PDT"]
[Termination "HZMC92 won by resignation"]

1. d4 {[%clk 0:02:59.6]} 1... Nf6 {[%clk 0:03:00]} 2. c4 {[%clk 0:03:00.4]} 2...
e6 {[%clk 0:03:01.2]} 3. Nf3 {[%clk 0:03:01.3]} 3... d5 {[%clk 0:03:01.4]} 4.
Nc3 {[%clk 0:03:01.5]} 4... Bb4 {[%clk 0:03:01.4]} 5. Bg5 {[%clk 0:03:02.4]}
5... O-O {[%clk 0:03:02.2]} 6. e3 {[%clk 0:03:03.3]} 6... h6 {[%clk 0:03:03.4]}
7. Bh4 {[%clk 0:03:03.5]} 7... c5 {[%clk 0:03:00.8]} 8. cxd5 {[%clk 0:03:03]}
8... exd5 {[%clk 0:03:01.1]} 9. Bd3 {[%clk 0:03:02.8]} 9... c4 {[%clk
0:02:58.7]} 10. Be2 {[%clk 0:03:02.7]} 10... Bf5 {[%clk 0:02:58.3]} 11. O-O
{[%clk 0:03:03.8]} 11... Bxc3 {[%clk 0:02:59.3]} 12. bxc3 {[%clk 0:03:05.7]}
12... Nbd7 {[%clk 0:02:58.3]} 13. Nd2 {[%clk 0:03:06.7]} 13... Re8 {[%clk
0:02:52.5]} 14. Bf3 {[%clk 0:03:07.7]} 14... Qa5 {[%clk 0:02:48.9]} 15. Qc1
{[%clk 0:03:06.4]} 15... Bd3 {[%clk 0:02:49.4]} 16. Re1 {[%clk 0:03:07.1]} 16...
g5 {[%clk 0:02:47.3]} 17. Bg3 {[%clk 0:03:08]} 17... b5 {[%clk 0:02:46.9]} 18.
a3 {[%clk 0:03:02.7]} 18... Re6 {[%clk 0:02:41.5]} 19. Be2 {[%clk 0:02:54.6]}
19... Bf5 {[%clk 0:02:39.4]} 20. Bf3 {[%clk 0:02:52.8]} 20... Qb6 {[%clk
0:02:36.6]} 21. Qb2 {[%clk 0:02:52.6]} 21... a5 {[%clk 0:02:36.4]} 22. h3 {[%clk
0:02:43.4]} 22... Qb7 {[%clk 0:02:32.4]} 23. Nxc4 {[%clk 0:02:39.5]} 23... Qc6
{[%clk 0:02:27.6]} 24. Ne5 {[%clk 0:02:36.7]} 24... Nxe5 {[%clk 0:02:27.7]} 25.
Bxe5 {[%clk 0:02:37.4]} 25... Ne4 {[%clk 0:02:27]} 26. Bxe4 {[%clk 0:02:34.3]}
26... Bxe4 {[%clk 0:02:26]} 27. f3 {[%clk 0:02:35.7]} 27... Bg6 {[%clk
0:02:26.1]} 28. Qb3 {[%clk 0:02:33.4]} 28... Rc8 {[%clk 0:02:24.1]} 29. e4
{[%clk 0:02:27.4]} 29... dxe4 {[%clk 0:02:21.5]} 30. d5 {[%clk 0:02:28.8]} 30...
Qc5+ {[%clk 0:02:10.5]} 31. Bd4 {[%clk 0:02:28]} 31... Qc4 {[%clk 0:02:10.4]}
32. Qxc4 {[%clk 0:02:28.7]} 32... Rxc4 {[%clk 0:02:09.6]} 33. dxe6 {[%clk
0:02:30.1]} 33... fxe6 {[%clk 0:02:10.4]} 34. fxe4 {[%clk 0:02:31.4]} 34... Kf7
{[%clk 0:02:10.2]} 35. Rf1+ {[%clk 0:02:32.4]} 35... Ke7 {[%clk 0:02:11]} 36.
Rab1 {[%clk 0:02:24]} 36... Bxe4 {[%clk 0:02:09]} 37. Rxb5 {[%clk 0:02:24.6]}
37... Kd6 {[%clk 0:02:08.6]} 38. Rxa5 {[%clk 0:02:21.8]} 38... Rc6 {[%clk
0:02:04.7]} 39. Rf7 {[%clk 0:02:20]} 39... Bd5 {[%clk 0:02:02.9]} 40. Raa7
{[%clk 0:02:15.9]} 40... Rc4 {[%clk 0:02:00.5]} 41. Rfd7+ {[%clk 0:02:16.6]}
41... Kc6 {[%clk 0:02:00.9]} 42. Rac7+ {[%clk 0:02:17.8]} 42... Kb5 {[%clk
0:02:01.6]} 43. Rxc4 {[%clk 0:02:18.9]} 43... Bxc4 {[%clk 0:02:02.1]} 44. Rh7
{[%clk 0:02:15]} 44... Ka4 {[%clk 0:02:01.4]} 45. Rxh6 {[%clk 0:02:15.6]} 45...
Kxa3 {[%clk 0:02:02.5]} 46. Rg6 {[%clk 0:02:17]} 1-0

[Event "*** Titled Tuesday 3|2 Blitz"]
[Site "Chess.com"]
[Date "2015.09.01"]
[Round "1"]
[White "Danirod"]
[Black "Grootneus"]
[Result "1-0"]
[WhiteElo "2353"]
[BlackElo "1987"]
[TimeControl "180+2"]
[EndTime "11:06:39 PDT"]
[Termination "Danirod won by resignation"]

1. e4 {[%clk 0:03:01.8]} 1... c5 {[%clk 0:03:01.1]} 2. Nf3 {[%clk 0:03:02.5]}
2... Nc6 {[%clk 0:03:02.7]} 3. c3 {[%clk 0:03:03.1]} 3... Nf6 {[%clk 0:03:03.5]}
4. e5 {[%clk 0:03:03.9]} 4... Nd5 {[%clk 0:03:05.2]} 5. Bc4 {[%clk 0:03:04.6]}
5... e6 {[%clk 0:03:06.8]} 6. d4 {[%clk 0:03:05.3]} 6... cxd4 {[%clk 0:03:08.7]}
7. cxd4 {[%clk 0:03:07]} 7... d6 {[%clk 0:03:09.5]} 8. O-O {[%clk 0:03:08]} 8...
Be7 {[%clk 0:03:09.6]} 9. a3 {[%clk 0:03:08.7]} 9... O-O {[%clk 0:03:09.8]} 10.
Qe2 {[%clk 0:03:09.8]} 10... dxe5 {[%clk 0:03:10.8]} 11. dxe5 {[%clk 0:03:10.8]}
11... b6 {[%clk 0:03:07.9]} 12. Rd1 {[%clk 0:03:10.8]} 12... Bb7 {[%clk
0:03:07]} 13. b4 {[%clk 0:03:02.2]} 13... Qc7 {[%clk 0:03:05.7]} 14. Bd3 {[%clk
0:02:56.6]} 14... Rad8 {[%clk 0:03:01.1]} 15. Qe4 {[%clk 0:02:37.5]} 15... g6
{[%clk 0:03:01]} 16. Bh6 {[%clk 0:02:38.5]} 16... Rfe8 {[%clk 0:02:59.7]} 17. h4
{[%clk 0:02:30.8]} 17... Ncxb4 {[%clk 0:02:25.2]} 18. axb4 {[%clk 0:02:31.5]}
18... Nc3 {[%clk 0:02:26.3]} 19. Nxc3 {[%clk 0:02:02.1]} 19... Bxe4 {[%clk
0:02:26.6]} 20. Nxe4 {[%clk 0:02:02.9]} 20... Bxb4 {[%clk 0:02:18.7]} 21. Nf6+
{[%clk 0:02:02.3]} 21... Kh8 {[%clk 0:02:19.5]} 22. Nxe8 {[%clk 0:02:02.4]}
22... Rxe8 {[%clk 0:02:21.4]} 23. Rac1 {[%clk 0:01:59.2]} 23... Qb7 {[%clk
0:02:18.7]} 24. Bb5 {[%clk 0:01:44.3]} 24... Rc8 {[%clk 0:02:02.4]} 25. Rxc8+
{[%clk 0:01:44.6]} 25... Qxc8 {[%clk 0:02:04.3]} 26. Bg5 {[%clk 0:01:45.3]}
26... a6 {[%clk 0:01:59.2]} 27. Rd8+ {[%clk 0:01:43]} 27... Qxd8 {[%clk
0:01:59]} 28. Bxd8 {[%clk 0:01:44.5]} 28... axb5 {[%clk 0:02:00.5]} 29. Bxb6
{[%clk 0:01:45.5]} 29... Kg8 {[%clk 0:02:01.3]} 30. Kf1 {[%clk 0:01:46.1]} 30...
Kf8 {[%clk 0:02:02.5]} 31. Ke2 {[%clk 0:01:45.5]} 31... Ke7 {[%clk 0:02:02.9]}
32. Kd3 {[%clk 0:01:46.1]} 32... Kd7 {[%clk 0:02:03.1]} 33. Nd4 {[%clk 0:01:46]}
33... Be1 {[%clk 0:02:03.9]} 34. Ke2 {[%clk 0:01:39.7]} 34... Bb4 {[%clk
0:02:04]} 35. Ba7 {[%clk 0:01:36.4]} 35... Be7 {[%clk 0:02:02.2]} 36. g3 {[%clk
0:01:33]} 36... h5 {[%clk 0:01:59.1]} 37. Nxb5 {[%clk 0:01:31.8]} 37... Kc6
{[%clk 0:02:00.7]} 38. Nc3 {[%clk 0:01:31]} 38... Bd8 {[%clk 0:01:53.2]} 39. Kd3
{[%clk 0:01:30.3]} 39... Bc7 {[%clk 0:01:50.7]} 40. Bd4 {[%clk 0:01:28.3]} 40...
Bb8 {[%clk 0:01:48]} 41. Kc4 {[%clk 0:01:29.4]} 41... Bc7 {[%clk 0:01:48.1]} 42.
Nb5 {[%clk 0:01:30.5]} 42... Bb8 {[%clk 0:01:49.2]} 43. f4 {[%clk 0:01:29.8]}
43... Kd7 {[%clk 0:01:42.8]} 44. Ba7 {[%clk 0:01:28.3]} 44... Bxa7 {[%clk
0:01:40.8]} 45. Nxa7 {[%clk 0:01:29.5]} 45... Ke7 {[%clk 0:01:42.7]} 46. Nc6+
{[%clk 0:01:28.6]} 46... Kf8 {[%clk 0:01:44.6]} 47. Kc5 {[%clk 0:01:29.7]} 47...
Kg7 {[%clk 0:01:46.5]} 48. Kd6 {[%clk 0:01:31.1]} 48... Kf8 {[%clk 0:01:47]} 49.
Kd7 {[%clk 0:01:30.9]} 49... Kg8 {[%clk 0:01:47.5]} 50. Ke7 {[%clk 0:01:31.9]}
50... Kg7 {[%clk 0:01:48.5]} 51. Nd8 {[%clk 0:01:33]} 51... Kh6 {[%clk
0:01:49.8]} 1-0

[Event "*** Titled Tuesday 3|2 Blitz"]
[Site "Chess.com"]
[Date "2015.09.01"]
[Round "1"]
[White "AndrewMcStone"]
[Black "AleksandrNevski"]
[Result "0-1"]
[WhiteElo "1939"]
[BlackElo "2312"]
[TimeControl "180+2"]
[EndTime "11:06:49 PDT"]
[Termination "AleksandrNevski won by resignation"]

1. d4 {[%clk 0:02:55.7]} 1... d5 {[%clk 0:03:00.3]} 2. c4 {[%clk 0:02:55.5]}
2... e6 {[%clk 0:03:01.4]} 3. Nc3 {[%clk 0:02:56.4]} 3... Be7 {[%clk 0:03:01.6]}
4. cxd5 {[%clk 0:02:56.5]} 4... exd5 {[%clk 0:03:02.5]} 5. Bf4 {[%clk
0:02:57.1]} 5... Nf6 {[%clk 0:03:04]} 6. e3 {[%clk 0:02:57.8]} 6... c6 {[%clk
0:03:05.4]} 7. Bd3 {[%clk 0:02:58.2]} 7... Nbd7 {[%clk 0:03:06.8]} 8. Qc2 {[%clk
0:02:58]} 8... O-O {[%clk 0:03:05.7]} 9. h3 {[%clk 0:02:53.2]} 9... Re8 {[%clk
0:03:07]} 10. Nf3 {[%clk 0:02:53]} 10... Nf8 {[%clk 0:03:08.3]} 11. Ne5 {[%clk
0:02:47.6]} 11... Bd6 {[%clk 0:02:58.4]} 12. O-O-O {[%clk 0:02:31.4]} 12... Ng6
{[%clk 0:02:49.4]} 13. Nxg6 {[%clk 0:02:26.9]} 13... hxg6 {[%clk 0:02:42.3]} 14.
Bxd6 {[%clk 0:01:47.9]} 14... Qxd6 {[%clk 0:02:44.2]} 15. g4 {[%clk 0:01:48.7]}
15... Bd7 {[%clk 0:02:33.3]} 16. Kb1 {[%clk 0:01:48.4]} 16... Rac8 {[%clk
0:02:33.2]} 17. Rc1 {[%clk 0:01:34.4]} 17... c5 {[%clk 0:02:24.4]} 18. dxc5
{[%clk 0:01:35]} 18... Rxc5 {[%clk 0:02:25.9]} 19. Qb3 {[%clk 0:01:08.1]} 19...
Bc6 {[%clk 0:02:14.8]} 20. Rhd1 {[%clk 0:00:53.2]} 20... Qh2 {[%clk 0:02:00.8]}
21. g5 {[%clk 0:00:53.8]} 21... Nh5 {[%clk 0:01:53.1]} 22. Rd2 {[%clk
0:00:21.6]} 22... b6 {[%clk 0:01:42.1]} 23. Qb4 {[%clk 0:00:19.8]} 23... Qxh3
{[%clk 0:01:35.8]} 24. Bf1 {[%clk 0:00:13.8]} 24... Qf5+ {[%clk 0:01:34.9]} 25.
Bd3 {[%clk 0:00:12.5]} 25... Qxg5 {[%clk 0:01:35.2]} 26. f4 {[%clk 0:00:11.9]}
26... Qg3 {[%clk 0:01:32.3]} 27. Re1 {[%clk 0:00:07.7]} 27... Rxe3 {[%clk
0:01:29.4]} 28. Rxe3 {[%clk 0:00:06.5]} 28... Qxe3 {[%clk 0:01:29.6]} 29. Nd1
{[%clk 0:00:06.4]} 29... Qxf4 {[%clk 0:01:29.3]} 0-1

[Event "*** Titled Tuesday 3|2 Blitz"]
[Site "Chess.com"]
[Date "2015.09.01"]
[Round "1"]
[White "joppie2"]
[Black "wonderfultime"]
[Result "1-0"]
[WhiteElo "2291"]
[BlackElo "2634"]
[TimeControl "180+2"]
[EndTime "11:07:07 PDT"]
[Termination "joppie2 won by resignation"]

1. e4 {[%clk 0:03:01.1]} 1... c5 {[%clk 0:03:00.7]} 2. Nf3 {[%clk 0:03:02.5]}
2... d6 {[%clk 0:03:01.4]} 3. d4 {[%clk 0:03:03.3]} 3... cxd4 {[%clk 0:03:03.3]}
4. Nxd4 {[%clk 0:03:05]} 4... Nf6 {[%clk 0:03:04.9]} 5. Nc3 {[%clk 0:03:06.4]}
5... a6 {[%clk 0:03:06.5]} 6. Bg5 {[%clk 0:03:04.1]} 6... e6 {[%clk 0:03:05.9]}
7. f4 {[%clk 0:03:04.7]} 7... Qb6 {[%clk 0:03:07.2]} 8. Qd2 {[%clk 0:03:05.4]}
8... Qxb2 {[%clk 0:03:02.2]} 9. Rb1 {[%clk 0:03:05.3]} 9... Qa3 {[%clk
0:03:03.7]} 10. e5 {[%clk 0:03:03.6]} 10... dxe5 {[%clk 0:02:33.9]} 11. fxe5
{[%clk 0:03:05.5]} 11... h6 {[%clk 0:02:35.3]} 12. Bh4 {[%clk 0:03:05.9]} 12...
Nfd7 {[%clk 0:02:29]} 13. Be2 {[%clk 0:02:54.6]} 13... g5 {[%clk 0:02:11.4]} 14.
Bg3 {[%clk 0:02:49.6]} 14... Bg7 {[%clk 0:02:06.3]} 15. O-O {[%clk 0:02:46.3]}
15... O-O {[%clk 0:02:06.8]} 16. Ne4 {[%clk 0:02:43.8]} 16... Nc6 {[%clk
0:01:45.9]} 17. Nxc6 {[%clk 0:02:37.1]} 17... bxc6 {[%clk 0:01:46.9]} 18. Rb3
{[%clk 0:02:35]} 18... Qe7 {[%clk 0:01:43.3]} 19. Qc3 {[%clk 0:02:36.1]} 19...
a5 {[%clk 0:01:22]} 20. Qxc6 {[%clk 0:02:11.7]} 20... Ra7 {[%clk 0:01:00.3]} 21.
Qd6 {[%clk 0:01:51.6]} 21... Qxd6 {[%clk 0:00:58.6]} 22. exd6 {[%clk 0:01:51.7]}
22... f5 {[%clk 0:00:58.1]} 23. Nd2 {[%clk 0:01:50]} 23... Ba6 {[%clk 0:00:57]}
24. Bxa6 {[%clk 0:01:45.3]} 24... Rxa6 {[%clk 0:00:58.9]} 25. Rb7 {[%clk
0:01:46.7]} 25... Rf7 {[%clk 0:01:00.4]} 26. Nc4 {[%clk 0:01:43.9]} 26... f4
{[%clk 0:00:51.2]} 27. Bf2 {[%clk 0:01:45.1]} 27... Ne5 {[%clk 0:00:51.7]} 28.
Rb8+ {[%clk 0:01:42.6]} 28... Kh7 {[%clk 0:00:51.9]} 29. Nb6 {[%clk 0:01:42.2]}
29... Nc6 {[%clk 0:00:49.9]} 30. d7 {[%clk 0:01:41.1]} 30... Bf6 {[%clk
0:00:48.8]} 31. Rc8 {[%clk 0:01:40.9]} 31... Nd8 {[%clk 0:00:38.6]} 32. c4
{[%clk 0:01:42]} 32... e5 {[%clk 0:00:38.7]} 33. Re1 {[%clk 0:01:42.3]} 33...
Rxb6 {[%clk 0:00:10.7]} 34. Bxb6 {[%clk 0:01:44.2]} 34... Rxd7 {[%clk
0:00:12.6]} 35. c5 {[%clk 0:01:45.6]} 35... Rd2 {[%clk 0:00:09.7]} 36. c6 {[%clk
0:01:46.1]} 36... Ne6 {[%clk 0:00:09.5]} 37. Re8 {[%clk 0:01:43.3]} 1-0